bitfinex/quotes_SOLUSD_20251120
["timestamp","ask_amount","ask_price","bid_price","bid_amount"]
[1763680118760,6.13424448,135.73,135.67,0.1]
[1763680118761,36.09577033,135.78,135.67,0.1]
[1763680118762,6.13424448,135.72,135.67,0.1]
[1763680118936,7.36709691,135.74,135.67,0.1]
[1763680118937,18.12096,135.68,135.67,0.1]
[1763680119140,18.12096,135.68,135.67,0.75]
[1763680119344,6.13424448,135.7,135.68,0.14216157]
[1763680119551,6.13424448,135.72,135.68,0.14216157]
[1763680119760,6.13424448,135.72,135.68,0.79216157]
[1763680120764,6.13424448,135.73,135.68,0.79216157]
[1763680121248,18.12096,135.7,135.68,0.79216157]
[1763680121636,6.13424448,135.74,135.7,0.14216157]
[1763680121831,6.14890086,135.75,135.72,0.14216157]
[1763680122064,18.12096,135.73,135.72,0.14216157]
[1763680122265,6.14890086,135.75,135.72,0.14216157]
[1763680122460,36.73117832,135.82,135.72,9.93098926]
[1763680122668,18.12096,135.79,135.73,0.65]
[1763680122964,18.12096,135.79,135.74,0.14216157]
[1763680123466,18.12096,135.79,135.74,0.79216157]
[1763680124465,36.17113521,135.84,135.74,0.79216157]
[1763680124850,7.36162296,135.84,135.76,0.14216157]
[1763680125366,18.12096,135.81,135.76,0.79216157]
[1763680126163,18.12096,135.82,135.76,0.79216157]
[1763680126367,61.99824485,135.85,135.76,0.79216157]
[1763680126744,18.12096,135.82,135.76,0.79216157]
[1763680127064,43.59559487,135.85,135.76,0.79216157]
[1763680128272,61.99824485,135.85,135.76,0.79216157]
[1763680128478,43.59559487,135.85,135.76,0.79216157]
[1763680128961,18.12096,135.82,135.76,0.79216157]
[1763680129274,23.04825862,135.81,135.76,0.79216157]
[1763680129572,4.92729862,135.8,135.76,0.79216157]
[1763680129764,4.92729862,135.79,135.76,0.79216157]
[1763680129945,4.92729862,135.8,135.76,0.79216157]
[1763680130145,4.92729862,135.79,135.76,0.79216157]
[1763680130365,4.92729862,135.8,135.76,0.79216157]
[1763680130561,4.92729862,135.79,135.76,0.79216157]
[1763680130789,4.92729862,135.78,135.73,0.7]
[1763680131257,25.48486043,135.8,135.73,0.7]
[1763680131258,4.92729862,135.77,135.73,0.7]
[1763680131460,4.92729862,135.79,135.74,0.14216157]
[1763680131645,4.92729862,135.78,135.74,0.14216157]
[1763680131845,4.92729862,135.77,135.74,0.14216157]
[1763680132046,25.48486043,135.8,135.74,0.84216157]
[1763680132047,14.83640832,135.8,135.74,0.84216157]
[1763680133974,18.12096,135.8,135.74,2.60216157]
[1763680135073,18.12096,135.79,135.74,2.60216157]
[1763680135551,18.12096,135.79,135.75,0.7]
[1763680137074,8.23681276,135.8,135.75,0.7]
[1763680137573,8.23681276,135.8,135.74,1.90216157]
[1763680137986,8.23681276,135.79,135.74,1.90216157]
[1763680138554,8.23681276,135.79,135.74,2.60216157]
[1763680138777,8.23681276,135.79,135.74,0.84216157]
[1763680139077,18.12096,135.74,135.72,1.76]
[1763680140476,18.12096,135.74,135.72,2.46]
[1763680140684,18.12096,135.74,135.73,0.7]
[1763680140880,18.12096,135.75,135.73,0.7]
[1763680142056,9.91010671,135.75,135.73,0.7]
[1763680142886,8.23681276,135.8,135.74,0.14216157]
[1763680143394,8.23681276,135.8,135.75,0.7]
[1763680143759,8.23681276,135.8,135.76,0.14216157]
[1763680143961,4.93604769,135.79,135.76,0.14216157]
[1763680144261,8.23681276,135.8,135.76,0.84216157]
[1763680144262,18.12096,135.77,135.76,0.84216157]
[1763680144483,23.05700769,135.77,135.76,0.84216157]
[1763680144655,4.93604769,135.77,135.76,0.84216157]
[1763680144862,4.93604769,135.77,135.74,0.7]
[1763680145079,4.93604769,135.76,135.74,0.7]
[1763680145276,4.93604769,135.75,135.74,0.84216157]
[1763680147167,18.12096,135.79,135.75,0.14216157]
[1763680147690,18.12096,135.8,135.76,0.7]
[1763680148283,18.12096,135.79,135.76,0.7]
[1763680148729,12.25629257,135.85,135.77,11.69098926]
[1763680148911,18.12096,135.83,135.77,11.69098926]
[1763680149186,11.21383295,135.86,135.79,0.14216157]
[1763680149701,18.12096,135.83,135.77,0.7]
[1763680149897,18.12096,135.83,135.76,1.76]
[1763680150102,18.12096,135.81,135.76,1.76]
[1763680150479,18.12096,135.8,135.76,1.76]
[1763680150882,18.12096,135.8,135.76,2.46]
[1763680152203,12.50890395,135.8,135.76,2.46]
[1763680152881,12.50890395,135.8,135.76,1.76]
[1763680153070,12.50890395,135.8,135.76,0.48386082]
[1763680153499,71.63282903,135.8,135.69,0.7]
[1763680153674,12.25629257,135.79,135.7,1.76]
[1763680153883,102.29854722,135.8,135.71,0.14216157]
[1763680154094,26.52519652,135.8,135.72,0.7]
[1763680154293,33.88904444,135.8,135.72,0.7]
[1763680154495,18.12096,135.76,135.72,0.7]
[1763680154877,18.12096,135.76,135.73,9.78882769]
[1763680155093,18.12096,135.79,135.74,0.14216157]
[1763680155409,18.12096,135.79,135.74,0.84216157]
[1763680156494,44.09422345,135.82,135.74,0.84216157]
[1763680156791,18.12096,135.79,135.74,0.84216157]
[1763680157178,9.580213,135.79,135.74,0.84216157]
[1763680159110,4.93612116,135.78,135.74,0.84216157]
[1763680159300,4.93612116,135.77,135.74,0.84216157]
[1763680159500,4.93612116,135.76,135.74,0.84216157]
[1763680159808,4.93612116,135.75,135.74,10.63098926]
[1763680159998,4.93612116,135.79,135.74,2.60216157]
[1763680160196,4.93612116,135.78,135.76,0.14216157]
[1763680160504,4.93612116,135.77,135.76,0.14216157]
[1763680160890,4.93612116,135.77,135.74,1.76]
[1763680161213,4.93612116,135.76,135.75,0.81216157]
[1763680162307,13.3644323,135.79,135.75,0.81216157]
[1763680163498,43.45121796,135.83,135.75,0.81216157]
[1763680163712,19.61795192,135.84,135.75,0.81216157]
[1763680164190,12.25629257,135.83,135.75,0.81216157]
[1763680164389,18.12096,135.8,135.75,0.81216157]
[1763680167397,65.49643099,135.83,135.75,0.81216157]
[1763680167595,29.40759746,135.83,135.75,0.81216157]
[1763680167817,65.49643099,135.83,135.75,0.81216157]
[1763680168916,29.40759746,135.83,135.75,0.81216157]
[1763680169118,14.01629257,135.84,135.75,0.81216157]
[1763680169323,18.12096,135.81,135.75,0.81216157]
[1763680169508,18.12096,135.8,135.75,0.81216157]
[1763680170334,17.62096,135.8,135.75,0.81216157]
[1763680172211,18.12096,135.79,135.75,0.81216157]
[1763680172415,11.98796299,135.79,135.75,0.81216157]
[1763680174226,4.9475945,135.78,135.75,0.81216157]
[1763680174531,4.9475945,135.77,135.75,0.81216157]
[1763680174712,4.9475945,135.76,135.75,0.81216157]
[1763680177054,4.9475945,135.76,135.74,62.96]
[1763680177228,23.0685545,135.75,135.7,0.67]
[1763680177550,4.9475945,135.74,135.7,0.67]
[1763680177723,4.9475945,135.73,135.7,0.67]
[1763680177914,4.9475945,135.72,135.7,0.67]
[1763680178136,4.9475945,135.71,135.7,0.81216157]
[1763680178437,4.9475945,135.71,135.7,0.67]
[1763680178841,4.9475945,135.71,135.7,0.81216157]
[1763680180260,4.9475945,135.71,135.68,0.67]
[1763680180550,26.36812242,135.75,135.68,0.67]
[1763680180551,23.0685545,135.7,135.68,0.67]
[1763680180851,4.9475945,135.69,135.68,0.67]
[1763680181439,4.9475945,135.69,135.68,0.81216157]
[1763680181762,4.9475945,135.69,135.68,0.67]
[1763680182164,4.9475945,135.69,135.68,0.81216157]
[1763680182654,24.29052914,135.7,135.68,0.81216157]
[1763680184038,24.29052914,135.7,135.67,1.86]
[1763680184262,24.29052914,135.7,135.67,2.53]
[1763680184437,24.29052914,135.7,135.67,0.1]
[1763680184757,24.29052914,135.7,135.68,0.67]
[1763680185056,24.29052914,135.7,135.67,2.53]
[1763680185664,18.12096,135.7,135.67,1.86]
[1763680186227,18.12096,135.7,135.67,0.1]
[1763680186458,36.24192,135.71,135.67,0.1]
[1763680187157,18.12096,135.7,135.67,0.1]
[1763680187539,2.9573768,135.71,135.67,0.1]
[1763680188858,40.63918689,135.75,135.67,0.77]
[1763680189033,1.76,135.74,135.67,0.77]
[1763680189239,2.95715817,135.72,135.67,0.77]
[1763680189759,21.07811817,135.72,135.67,0.77]
[1763680190839,18.12096,135.71,135.67,0.77]
[1763680191441,18.12096,135.71,135.67,0.1]
[1763680192659,2.95715817,135.72,135.67,0.1]
[1763680194664,23.03401851,135.71,135.67,0.1]
[1763680194853,23.03401851,135.7,135.67,0.1]
[1763680195049,10.32529151,135.72,135.67,0.1]
[1763680195050,4.91305851,135.69,135.67,0.1]
[1763680195253,23.03401851,135.68,135.62,0.1]
[1763680195572,2.9580329,135.69,135.63,1.76]
[1763680195573,23.03401851,135.67,135.63,1.76]
[1763680195869,23.03401851,135.66,135.63,1.76]
[1763680196078,4.91305851,135.65,135.63,1.76]
[1763680196280,68.12096,135.66,135.56,2.59593088]
[1763680196445,18.12096,135.61,135.56,1.93593088]
[1763680196641,23.03401851,135.6,135.56,1.93593088]
[1763680196843,4.91305851,135.59,135.56,1.93593088]
[1763680197055,4.91305851,135.62,135.56,1.93593088]
[1763680197258,52.95978393,135.64,135.56,1.93593088]
[1763680197259,18.12096,135.6,135.56,1.93593088]
[1763680197474,4.91305851,135.59,135.56,1.93593088]
[1763680197777,15.38382072,135.61,135.56,2.59593088]
[1763680198349,15.38382072,135.61,135.56,1.93593088]
[1763680199415,22.14660215,135.63,135.57,0.66]
[1763680199549,22.14660215,135.63,135.58,0.14216157]
[1763680199873,18.12096,135.6,135.58,0.14216157]
[1763680200063,2.95978393,135.64,135.59,0.66]
[1763680200245,104.61017384,135.69,135.6,0.14216157]
[1763680200246,36.18521773,135.69,135.6,0.14216157]
[1763680200641,2.95825167,135.67,135.6,1.90216157]
[1763680200860,2.95825167,135.67,135.6,1.76]
[1763680200861,72.83921167,135.67,135.6,1.76]
[1763680201082,72.83921167,135.67,135.61,0.66]
[1763680201083,18.12096,135.64,135.61,0.66]
[1763680201276,90.89330336,135.73,135.61,0.66]
[1763680201277,22.47413872,135.73,135.62,9.93098926]
[1763680201467,2.9573768,135.71,135.62,9.93098926]
[1763680201773,2.9573768,135.71,135.64,0.14216157]
[1763680201947,18.12096,135.7,135.64,0.14216157]
[1763680202149,18.12096,135.7,135.65,2.42]
[1763680202373,18.12096,135.7,135.66,0.66]
[1763680202547,2.9573768,135.71,135.66,0.66]
[1763680202743,20.49182402,135.73,135.66,0.66]
[1763680202946,2.95693956,135.74,135.67,0.14216157]
[1763680203169,18.12096,135.72,135.67,0.14216157]
[1763680203376,18.12096,135.7,135.68,0.66]
[1763680203950,18.12096,135.7,135.67,0.14216157]
[1763680204167,18.12096,135.7,135.67,0.80216157]
[1763680205983,18.12096,135.7,135.67,0.66]
[1763680206950,18.12096,135.7,135.61,9.78882769]
[1763680207156,18.12096,135.7,135.62,1.76]
[1763680207464,18.12096,135.7,135.64,0.14216157]
[1763680207865,29.01220889,135.73,135.65,0.66]
[1763680208062,30.77220889,135.73,135.65,0.66]
[1763680208262,29.01220889,135.73,135.65,0.66]
[1763680208462,30.77220889,135.73,135.65,0.66]
[1763680208858,66.98925789,135.73,135.65,0.66]
[1763680209156,36.38101865,135.72,135.65,0.66]
[1763680209573,36.38101865,135.72,135.63,0.80216157]
[1763680209574,7.36865374,135.71,135.63,0.80216157]
[1763680209756,18.12096,135.68,135.63,0.80216157]
[1763680209953,4.8936529,135.67,135.63,0.80216157]
[1763680210796,18.12096,135.68,135.63,0.80216157]
[1763680210987,4.8936529,135.67,135.63,0.80216157]
[1763680211667,4.8936529,135.67,135.63,10.59098926]
[1763680212095,4.8936529,135.67,135.65,0.14216157]
[1763680212490,4.8936529,135.67,135.66,0.80216157]
[1763680212913,18.12096,135.7,135.66,0.80216157]
[1763680213809,18.12096,135.7,135.67,0.14216157]
[1763680214295,18.12096,135.7,135.67,1.90216157]
[1763680214472,18.12096,135.7,135.67,2.56216157]
[1763680214668,18.12096,135.7,135.68,0.66]
[1763680217873,11.61554047,135.7,135.67,1.90216157]
[1763680218075,11.61554047,135.7,135.67,2.56216157]
[1763680218271,11.61554047,135.7,135.65,0.66]
[1763680218701,22.18196606,135.69,135.65,0.66]
[1763680219897,18.12096,135.66,135.65,0.66]
[1763680220098,18.12096,135.66,135.65,0.80216157]
[1763680220601,18.12096,135.68,135.66,0.14216157]
[1763680220984,18.12096,135.68,135.67,0.72]
[1763680222901,18.12096,135.67,135.65,0.72]
[1763680223205,17.95050417,135.71,135.65,0.86216157]
[1763680223890,17.95050417,135.71,135.65,2.62216157]
[1763680224085,17.95050417,135.71,135.65,1.90216157]
[1763680224303,17.95050417,135.71,135.66,0.72]
[1763680224598,8.16167648,135.71,135.66,0.72]
[1763680225040,18.12096,135.68,135.65,1.76]
[1763680225193,4.91940271,135.7,135.64,0.72]
[1763680225194,23.04036271,135.67,135.64,0.72]
[1763680225389,4.91940271,135.66,135.61,0.72]
[1763680225614,23.04036271,135.65,135.57,0.72]
[1763680225816,18.12096,135.62,135.58,0.72]
[1763680226119,18.12096,135.6,135.57,2.48]
[1763680226309,4.91940271,135.59,135.57,2.48]
[1763680226503,4.91940271,135.58,135.56,1.93593088]
[1763680226819,4.91940271,135.57,135.56,1.93593088]
[1763680227014,29.43652411,135.57,135.56,1.93593088]
[1763680227192,23.04036271,135.57,135.56,1.93593088]
[1763680227597,23.04036271,135.57,135.56,2.65593088]
[1763680227991,10.57470425,135.57,135.56,2.65593088]
[1763680228209,8.16167648,135.63,135.56,2.65593088]
[1763680228405,8.16167648,135.63,135.57,0.72]
[1763680228604,5.28167648,135.63,135.58,0.14216157]
[1763680228946,12.25629257,135.72,135.6,0.14216157]
[1763680229117,40.5613159,135.74,135.6,0.14216157]
[1763680229118,3.85651526,135.74,135.66,2.0]
[1763680229291,3.85651526,135.74,135.68,0.14216157]
[1763680229487,0.68,135.75,135.68,9.93098926]
[1763680229804,0.68,135.75,135.7,9.93098926]
[1763680230119,18.80096,135.75,135.7,0.14216157]
[1763680230490,0.69,135.74,135.69,1.78]
[1763680230799,0.69,135.74,135.7,0.14216157]
[1763680231013,0.69,135.74,135.69,1.78]
[1763680231312,0.69,135.74,135.67,1.78]
[1763680231313,18.81096,135.74,135.67,1.78]
[1763680231488,18.81096,135.74,135.65,0.14216157]
[1763680231489,18.81096,135.74,135.68,1.78]
[1763680231687,0.69,135.73,135.68,1.78]
[1763680232099,18.81096,135.73,135.68,1.78]
[1763680232485,0.69,135.72,135.67,1.78]
[1763680233085,36.14864523,135.76,135.67,1.78]
[1763680233311,43.51458512,135.76,135.67,1.78]
[1763680233491,111.92943485,135.76,135.67,0.14216157]
[1763680233692,93.51458512,135.76,135.67,0.14216157]
[1763680235098,18.12096,135.73,135.67,0.14216157]
[1763680235498,18.12096,135.73,135.67,0.85216157]
[1763680235805,0.69,135.73,135.67,0.85216157]
[1763680236205,18.81096,135.73,135.67,0.85216157]
[1763680237302,0.69,135.72,135.67,0.14216157]
[1763680237795,0.69,135.72,135.67,0.85216157]
[1763680238221,7.36654274,135.75,135.67,0.85216157]
[1763680238421,7.36654274,135.75,135.67,0.14216157]
[1763680239327,7.36654274,135.75,135.58,0.21324235]
[1763680239328,98.25362833,135.74,135.62,0.71]
[1763680239504,9.78882769,135.71,135.59,0.71]
[1763680239825,11.54882769,135.71,135.59,0.71]
[1763680240022,4.9132519,135.7,135.6,0.14216157]
[1763680240198,18.12096,135.67,135.59,0.71]
[1763680240398,23.0342119,135.66,135.59,0.71]
[1763680240624,18.12096,135.63,135.59,0.71]
[1763680240831,4.9132519,135.62,135.57,1.78]
[1763680240999,4.9132519,135.62,135.56,1.93593088]
[1763680241000,5.6032519,135.62,135.56,1.93593088]
[1763680241323,26.68421486,135.61,135.56,1.93593088]
[1763680241531,18.12096,135.58,135.56,1.93593088]
[1763680241731,23.0342119,135.57,135.56,1.93593088]
[1763680242445,4.9132519,135.57,135.56,1.93593088]
[1763680242603,23.7242119,135.58,135.56,1.93593088]
[1763680242803,4.9132519,135.57,135.56,1.93593088]
[1763680243320,0.69,135.6,135.56,1.93593088]
[1763680243577,0.69,135.6,135.56,2.64593088]
[1763680243713,0.69,135.61,135.57,0.71]
[1763680244028,6.134267,135.62,135.57,0.71]
[1763680244333,0.69,135.61,135.57,0.71]
[1763680245445,18.12096,135.6,135.57,0.71]
[1763680246149,18.81096,135.59,135.56,1.93593088]
[1763680246322,0.69,135.59,135.56,1.93593088]
[1763680246523,18.81096,135.58,135.56,1.93593088]
[1763680247216,0.69,135.58,135.56,1.93593088]
[1763680247429,18.12096,135.59,135.56,1.93593088]
[1763680247745,18.81096,135.59,135.56,1.93593088]
[1763680247951,18.12096,135.6,135.56,1.93593088]
[1763680248119,18.12096,135.59,135.56,1.93593088]
[1763680248445,6.134267,135.63,135.56,1.93593088]
[1763680248743,0.69,135.59,135.56,1.93593088]
[1763680249250,0.69,135.62,135.57,0.71]
[1763680249445,0.69,135.62,135.56,1.93593088]
[1763680250334,18.12096,135.6,135.56,1.93593088]
[1763680250538,18.81096,135.6,135.56,2.60593088]
[1763680250862,18.81096,135.6,135.56,1.93593088]
[1763680251063,0.69,135.59,135.56,1.93593088]
[1763680251233,18.12096,135.6,135.56,1.93593088]
[1763680251761,0.69,135.59,135.56,1.93593088]
[1763680251962,18.81096,135.59,135.56,1.93593088]
[1763680252461,0.69,135.58,135.56,1.93593088]
[1763680252955,27.90978769,135.57,135.53,0.1]
[1763680253143,8.82426686,135.58,135.53,0.1]
[1763680253144,18.12096,135.54,135.53,0.1]
[1763680253342,35.79232265,135.54,135.53,0.1]
[1763680253544,49.90448547,135.54,135.53,0.1]
[1763680253734,42.52658965,135.54,135.53,0.1]
[1763680253934,36.39232265,135.54,135.53,0.1]
[1763680255138,41.27627922,135.54,135.53,0.1]
[1763680255656,40.67627922,135.54,135.53,0.1]
[1763680255953,18.58908556,135.54,135.53,0.1]
[1763680256555,17.98908556,135.54,135.53,0.1]
[1763680256872,40.4925145,135.54,135.53,0.1]
[1763680257051,17.98908556,135.54,135.53,0.1]
[1763680257366,18.12096,135.54,135.53,0.1]
[1763680257546,23.00491657,135.54,135.53,0.1]
[1763680257936,5.48395657,135.54,135.53,0.1]
[1763680258162,23.60491657,135.54,135.53,0.1]
[1763680258378,18.12096,135.54,135.53,0.1]
[1763680259770,18.12096,135.54,135.53,0.77]
[1763680260273,18.12096,135.54,135.53,0.1]
[1763680260571,9.78882769,135.59,135.53,0.77]
[1763680260732,18.12096,135.56,135.53,0.77]
[1763680260931,18.12096,135.56,135.53,0.1]
[1763680261178,18.12096,135.55,135.53,0.1]
[1763680261536,25.49882909,135.55,135.53,0.1]
[1763680261960,18.12096,135.54,135.53,0.1]
[1763680263280,57.37738156,135.55,135.53,0.1]
[1763680263585,2.96153703,135.54,135.47,0.67]
[1763680264376,2.96153703,135.54,135.44,0.67]
[1763680264672,50.0,135.49,135.42,0.67]
[1763680265085,50.0,135.53,135.42,0.67]
[1763680265390,18.12096,135.5,135.42,0.67]
[1763680265696,18.12096,135.48,135.42,0.67]
[1763680266057,18.12096,135.5,135.43,0.14216157]
[1763680266370,18.12096,135.5,135.42,0.67]
[1763680266371,18.12096,135.48,135.42,0.67]
[1763680267661,18.12096,135.49,135.42,0.67]
[1763680268076,18.12096,135.48,135.42,0.67]
[1763680268475,50.0,135.49,135.42,0.67]
[1763680268677,50.0,135.49,135.36,0.67]
[1763680268678,59.78882769,135.48,135.36,0.67]
[1763680268866,9.78882769,135.44,135.36,0.67]
[1763680269072,59.78882769,135.44,135.36,0.67]
[1763680269275,50.0,135.42,135.34,0.67]
[1763680269474,7.38552437,135.4,135.32,0.67]
[1763680269662,1.78,135.41,135.32,0.67]
[1763680269872,9.16431988,135.43,135.32,0.67]
[1763680270073,9.16431988,135.43,135.32,0.17]
[1763680270312,9.78882769,135.41,135.29,0.1]
[1763680270506,18.12096,135.36,135.29,0.1]
[1763680270821,18.12096,135.34,135.29,0.1]
[1763680271273,50.0,135.42,135.29,0.1]
[1763680271274,0.5,135.42,135.29,0.1]
[1763680271474,6.37014487,135.43,135.31,9.93098926]
[1763680271675,0.5,135.44,135.31,9.93098926]
[1763680272302,0.5,135.44,135.32,0.67]
[1763680272303,18.12096,135.4,135.32,0.67]
[1763680272783,18.12096,135.36,135.3,0.67]
[1763680272987,18.12096,135.36,135.31,0.67]
[1763680273479,25.50719905,135.39,135.29,0.77]
[1763680273684,0.5,135.37,135.3,0.67]
[1763680273887,4.82312385,135.39,135.3,0.67]
[1763680274087,0.5,135.38,135.3,0.67]
[1763680274280,2.28,135.38,135.3,0.67]
[1763680274481,0.5,135.38,135.3,0.67]
[1763680274883,0.5,135.38,135.3,0.17]
[1763680275083,4.82312385,135.39,135.29,0.1]
[1763680275282,0.69,135.38,135.29,0.1]
[1763680275484,18.12096,135.37,135.29,0.1]
[1763680275692,25.50845603,135.37,135.29,0.1]
[1763680275997,18.12096,135.35,135.29,0.1]
[1763680276371,18.12096,135.37,135.29,0.1]
[1763680276769,18.81096,135.37,135.29,0.1]
[1763680277000,18.81096,135.37,135.3,0.67]
[1763680277371,18.12096,135.36,135.3,0.67]
[1763680278682,0.69,135.37,135.3,0.17]
[1763680278885,0.69,135.37,135.29,0.1]
[1763680279085,0.69,135.4,135.29,0.1]
[1763680279393,0.69,135.39,135.29,0.1]
[1763680279570,7.28879776,135.39,135.29,0.1]
[1763680279771,5.50879776,135.39,135.29,9.88882769]
[1763680280004,0.69,135.38,135.29,9.88882769]
[1763680280203,0.69,135.38,135.29,0.1]
[1763680280583,18.12096,135.37,135.31,0.14216157]
[1763680280781,18.12096,135.37,135.29,0.1]
[1763680280988,18.12096,135.36,135.29,1.88]
[1763680281698,47.72943453,135.42,135.29,1.88]
[1763680281699,9.78882769,135.42,135.29,1.88]
[1763680281907,0.66,135.41,135.29,3.88]
[1763680282092,18.12096,135.4,135.29,3.88]
[1763680282294,18.12096,135.4,135.3,1.78]
[1763680282681,12.90274194,135.44,135.32,9.78882769]
[1763680283000,12.90274194,135.44,135.34,0.14216157]
[1763680283001,18.12096,135.41,135.34,0.14216157]
[1763680283503,18.78096,135.41,135.34,0.80216157]
[1763680283800,10.39924178,135.41,135.34,0.80216157]
[1763680284780,0.66,135.4,135.32,0.66]
[1763680285292,5.48307825,135.4,135.32,0.66]
[1763680285695,0.66,135.39,135.32,0.66]
[1763680285904,18.78096,135.39,135.32,0.66]
[1763680286290,18.78096,135.38,135.32,0.14216157]
[1763680286493,18.78096,135.38,135.32,0.80216157]
[1763680286707,18.78096,135.37,135.32,0.66]
[1763680287409,18.12096,135.37,135.32,0.66]
[1763680287795,18.78096,135.39,135.32,0.66]
[1763680288210,18.78096,135.39,135.29,0.1]
[1763680288211,23.60572831,135.38,135.29,2.02216157]
[1763680288415,18.78096,135.38,135.31,0.14216157]
[1763680288632,18.78096,135.4,135.31,0.14216157]
[1763680288912,4.82671373,135.39,135.32,0.66]
[1763680289288,11.90745874,135.4,135.32,0.66]
[1763680289614,16.73417247,135.4,135.32,0.66]
[1763680290798,18.12096,135.38,135.32,0.66]
[1763680291401,3.86629231,135.4,135.32,0.66]
[1763680291716,3.86629231,135.4,135.33,0.14216157]
[1763680291717,18.80096,135.4,135.33,0.14216157]
[1763680292014,18.12096,135.37,135.33,0.14216157]
[1763680292317,18.12096,135.37,135.34,0.71]
[1763680292687,18.12096,135.41,135.34,0.71]
[1763680292913,0.68,135.43,135.35,0.14216157]
[1763680293097,4.83804343,135.45,135.36,0.71]
[1763680293431,18.80096,135.43,135.36,0.71]
[1763680293591,18.12096,135.4,135.36,0.71]
[1763680293793,18.12096,135.43,135.36,0.71]
[1763680293794,12.8204471,135.43,135.36,0.71]
[1763680294424,17.66278335,135.43,135.36,0.71]
[1763680294720,4.84233625,135.43,135.37,0.14216157]
[1763680296321,18.12096,135.44,135.38,0.71]
[1763680296495,4.85815755,135.43,135.38,0.71]
[1763680296899,4.85815755,135.43,135.39,0.14216157]
[1763680297120,18.12096,135.44,135.39,0.14216157]
[1763680297300,4.86390391,135.43,135.4,0.71]
[1763680297506,4.86390391,135.44,135.4,0.71]
[1763680297823,4.86390391,135.45,135.4,0.71]
[1763680298029,18.12096,135.44,135.4,0.71]
[1763680298195,4.86390391,135.43,135.4,0.71]
[1763680298824,11.01316777,135.45,135.4,0.71]
[1763680299492,11.01316777,135.45,135.39,0.14216157]
[1763680299694,11.01316777,135.45,135.39,0.71]
[1763680300923,26.18431103,135.44,135.36,0.71]
[1763680301139,26.18431103,135.44,135.36,2.49]
[1763680301345,0.68,135.43,135.36,2.49]
[1763680301537,0.68,135.43,135.37,0.71]
[1763680303739,18.12096,135.4,135.37,0.71]
[1763680304041,0.68,135.43,135.37,0.71]
[1763680304243,6.814267,135.43,135.29,2.1]
[1763680304429,6.814267,135.43,135.35,0.71]
[1763680304631,6.814267,135.42,135.35,0.71]
[1763680305146,0.68,135.41,135.35,0.71]
[1763680305943,18.12096,135.38,135.35,0.71]
[1763680307339,18.12096,135.39,135.35,0.71]
[1763680307516,18.12096,135.39,135.36,0.14216157]
[1763680307717,18.12096,135.39,135.35,0.71]
[1763680308525,18.12096,135.38,135.35,0.71]
[1763680309044,10.03946102,135.38,135.35,0.71]
[1763680309347,6.134267,135.43,135.35,0.71]
[1763680309524,6.134267,135.42,135.35,0.71]
[1763680310229,6.134267,135.42,135.36,0.14216157]
[1763680310442,6.134267,135.42,135.35,0.71]
[1763680310638,6.134267,135.42,135.36,0.14216157]
[1763680311053,18.12096,135.38,135.34,0.65]
[1763680311363,4.90406904,135.37,135.34,1.78]
[1763680311528,4.90406904,135.37,135.35,0.65]
[1763680314054,0.71,135.42,135.35,0.65]
[1763680314055,6.134267,135.41,135.35,0.65]
[1763680315548,6.134267,135.42,135.35,0.65]
[1763680315743,6.134267,135.42,135.36,0.14216157]
[1763680315958,18.12096,135.4,135.36,0.14216157]
[1763680316155,6.134267,135.43,135.37,0.65]
[1763680316550,18.12096,135.4,135.37,0.65]
[1763680317552,18.12096,135.41,135.37,0.65]
[1763680318350,18.12096,135.4,135.37,0.65]
[1763680318747,18.12096,135.4,135.38,0.14216157]
[1763680318952,12.18715824,135.42,135.38,0.14216157]
[1763680319245,12.18715824,135.42,135.39,0.65]